[Event "Marienbad Open IM B 2025"]
[Site "Marianske Lazne"]
[Date "2025.01.21"]
[Round "4.14"]
[White "Senthil Maran K"]
[Black "Tichy, Stepan"]
[Result "1-0"]
[Annotator "TA"]
[ECO "A13"]
[WhiteElo "2398"]
[BlackElo "2184"]
[PlyCount "103"]
[EventDate "2025.01.18"]
[EventType "tourn"]
[EventCountry "CZE"]
[SourceTitle "playchess.com"]
[Source "ChessBase"]
[SourceQuality "1"]
[TimeControl "40/5400+30:1800+30"]

{[%evp 9,103,21,47,47,35,25,48,27,45,0,47,38,32,34,35,30,52,60,60,74,75,59,64,69,72,75,73,62,62,56,58,56,71,56,74,59,84,85,87,66,70,71,65,15,54,43,82,103,106,107,136,129,144,99,123,63,81,0,113,112,86,64,41,37,42,37,45,40,35,54,49,12,163,157,145,162,182,182,483,171,568,565,459,196,629,189,745,849,817,855,791,862,856,839,790,769]} 1. c4 {[%emt 0:00:02]} e6 {[%emt 0:02:33]} 2. g3 {[%emt 0:00:17]} Nf6 {[%emt 0:00:32]} 3. Bg2 {[%emt 0:00:12]} d5 {[%emt 0:00:23]} 4. d4 {[%emt 0:00:42]} c6 {[%emt 0:01:39]} 5. Nf3 {[%emt 0:00:17]} Ne4 {[%emt 0:05:49]} 6. O-O {[%emt 0:00:51]} Nd7 {[%emt 0:01:26]} 7. Nc3 {[%emt 0:03:15]} f5 {[%emt 0:03:08][%cal Bf7f5,Bf5e4][%mdl 32]} 8. Bf4 {[%emt 0:11:43][%cal Bc1f4,Bf4e3,Be3c5][%mdl 32]} Be7 {[%emt 0:06:07][%cal Bf8e7,Be7f6,Bf6e5][%mdl 32]} 9. Qc2 {[%emt 0:03:35]} O-O {[%emt 0:01:21]} (9... g5 $11 {is superior.} 10. Be3 Nd6) 10. Nxe4 {[%emt 0:03:31]} fxe4 {[%emt 0:00:37]} 11. Ne5 {[%emt 0:00:25]} Bf6 {[%emt 0:09:00]} 12. Rad1 {[%emt 0:03:30]} g5 {[%emt 0:05:42]} 13. Be3 {[%emt 0:04:00]} Nxe5 {[%emt 0:07:40]} 14. dxe5 {[%emt 0:02:19]} Bxe5 {[%emt 0:00:10]} 15. Bxe4 {[%emt 0:01:14]} Qe7 {[%emt 0:00:21]} 16. cxd5 {[%emt 0:02:05]} exd5 {[%emt 0:01:51]} 17. Bc5 {[%emt 0:00:16]} Bd6 {[%emt 0:01:31] [#]} 18. Bxh7+ $1 {[%emt 0:05:16]} Qxh7 {[%emt 0:00:47]} 19. Qxh7+ {[%emt 0:00:09]} Kxh7 {[%emt 0:00:02]} 20. Bxd6 {[%emt 0:00:02]} Re8 {[%emt 0:00:40]} 21. Rd2 {[%emt 0:00:29]} Bh3 {[%emt 0:02:08]} 22. Re1 {[%emt 0:00:41]} Re6 {[%emt 0:02:05]} 23. Ba3 {[%emt 0:00:45]} Bf5 {[%emt 0:04:19]} 24. f3 $36 {[%emt 0:00:26][%mdl 2048] White is more active.} g4 {[%emt 0:00:31]} 25. Kf2 {[%emt 0:01:04][%cal Oh2h3]} Rae8 {[%emt 0:00:26]} 26. Rh1 {[%emt 0:01:31]} (26. Rc1 $14) 26... Rf6 {[%emt 0:05:30]} 27. Rf1 {[%emt 0:05:13]} Kg6 {[%emt 0:05:39]} 28. Bc5 {[%emt 0:07:23]} b6 {[%emt 0:01:52]} 29. Bd4 {[%emt 0:02:34]} Rfe6 {[%emt 0:00:31] [#]} 30. b4 $1 {[%emt 0:00:32]} Kf7 {[%emt 0:03:05]} 31. Rh1 {[%emt 0:08:35]} Rc8 {[%emt 0:14:22]} 32. Bb2 {[%emt 0:06:13]} (32. Rc1 $16) 32... Rce8 $14 {[%emt 0:03:40]} 33. Bd4 {[%emt 0:07:12]} Rc8 $1 {[%emt 0:00:09]} 34. Bc3 {[%emt 0:00:47]} Rce8 {[%emt 0:00:22]} 35. h3 {[%emt 0:01:23]} gxf3 {[%emt 0:01:13]} 36. exf3 {[%emt 0:00:01]} Re3 {[%emt 0:00:12]} 37. Rc1 {[%emt 0:00:13] g4 is the strong threat.} Bd3 {[%emt 0:01:31]} 38. g4 {[%emt 0:08:43]} c5 {[%emt 0:00:16] Against Bd4} 39. bxc5 {[%emt 0:01:50]} bxc5 {[%emt 0:00:02]} 40. Ba1 {[%emt 0:03:57]} Be2 $2 {[%emt 0:05:33]} (40... Re2+ $11 41. Rxe2 Rxe2+ 42. Kg3 Rxa2) 41. Rxc5 $18 {[%emt 0:31:51]} (41. Rxd5 Rxf3+ 42. Kg2 Ree3 $16) 41... Rxf3+ {[%emt 0:09:55]} 42. Kg2 {[%emt 0:00:00]} Ra3 {[%emt 0:02:24]} (42... Ree3 $2 43. Rc7+ (43. Rcxd5 Rg3+ 44. Kh2 Rxh3+ 45. Kg2 Rhg3+ 46. Kh2 Bxg4 $11) 43... Kg6 44. Rc6+ (44. Rxa7 Bf1+ 45. Kg1 Bxh3 $11) (44. Rxd5 Rg3+ 45. Kf2 Rgf3+ 46. Kg1 Rg3+ 47. Kf2 Rgf3+ 48. Kg1 Rg3+ 49. Kh2 Rxh3+ 50. Kg2 Rhg3+ 51. Kh2 Rh3+ 52. Kg2 Rhg3+ 53. Kf2 Rgf3+ 54. Kg2 Rg3+ $11) 44... Kf7 45. Rxe2 (45. Rxd5 Bf1+ 46. Kg1 Bxh3 $11) 45... Rg3+ 46. Kf1 Rxh3 47. Rf6+ Kg8 48. Rxe3 Rxe3 49. g5 $18) 43. Rc7+ {[%emt 0:00:00]} (43. Rdxd5 Bf3+ (43... Rxa2 44. Rf5+ Ke6 45. Rce5+ Kd7 46. Rf7+ Kd6 47. Rxe8 $16) 44. Kf1 Bxd5 45. Rxd5 Rxh3 $15) 43... Kg8 $2 {[%emt 0:02:45]} (43... Kg6 44. Rg7+ (44. Rxd5 $2 Bf3+ 45. Kf2 Bxd5 $19) 44... Kh6) 44. Bd4 $2 {[%emt 0:00:00]} (44. Rxd5 $2 Bf3+ (44... Rxa2 45. Rg7+ Kh8 46. Rh5#) 45. Kg3 Bxd5+ $19) (44. Bc3) 44... a5 $2 {[%emt 0:02:04]} (44... Rd3 {is tougher.} 45. Rg7+ Kf8 46. Rxd3 Bxd3 47. Rxa7 Re4) 45. Rg7+ {[%emt 0:00:00]} Kf8 {[%emt 0:00:05]} 46. Ra7 {[%emt 0:00:00]} (46. Rc2 $142 Bf3+ 47. Kf1) 46... Kg8 $2 {[%emt 0:07:18]} (46... Rd3 47. Bc5+ Kg8 48. Rxd3 Bxd3) 47. Bc5 $2 {[%emt 0:00:00]} (47. Rc2 {White threatens Rcc7 and mate.} Bf3+ 48. Kf1) 47... Bf3+ $2 {[%emt 0:02:07]} (47... Rd3 48. Rxd3 Bxd3 49. Rxa5 Re2+ 50. Kg3 Rc2) 48. Kg3 {[%emt 0:00:00]} Rc3 {[%emt 0:00:16]} 49. Bd4 {[%emt 0:00:00]} ({Inferior is} 49. Rxa5 Bxg4+ 50. Kxg4 Re4+ 51. Kf5 Rf3+ 52. Kg5 Rg3+ 53. Kf6 Rf3+ 54. Kg6 Rg3+ 55. Kf5 Rf3+ 56. Kg6 Rg3+ 57. Kh5 Rxh3+ 58. Kg5 Rg3+ 59. Kh5 Rh3+ 60. Kg6 Rg3+ 61. Kh5 Rh3+ $11) 49... Ra3 {[%emt 0:00:38]} 50. Rg7+ {[%emt 0:00:00]} Kf8 {[%emt 0:00:24]} 51. Rf2 {[%emt 0:00:00]} Re4 {[%emt 0:00:58]} 52. Bb2 {[%emt 0:00:00]} (52. Rxf3+ Rxf3+ 53. Kxf3 Rxd4 $16) 1-0

[Event "Marienbad Open IM B 2025"]
[Site "Marianske Lazne"]
[Date "2025.01.21"]
[Round "4.15"]
[White "Van der Hagen, Loek"]
[Black "Ochedzan, Filip"]
[Result "1-0"]
[Annotator "TA"]
[ECO "B67"]
[WhiteElo "2299"]
[BlackElo "2138"]
[PlyCount "145"]
[EventDate "2025.01.18"]
[EventType "tourn"]
[EventCountry "CZE"]
[SourceTitle "playchess.com"]
[Source "ChessBase"]
[SourceQuality "1"]
[TimeControl "40/5400+30:1800+30"]

{[%evp 18,145,29,23,45,27,30,20,20,18,14,20,32,26,16,17,30,18,77,72,61,43,50,0,85,89,102,116,163,170,170,164,151,154,177,53,60,41,33,28,28,22,50,0,0,0,14,0,0,0,0,0,0,0,45,0,18,0,59,50,80,52,106,110,111,112,160,170,181,180,180,180,176,174,176,176,134,166,140,109,176,168,216,96,396,125,335,312,320,154,122,55,818,847,656,637,584,580,1594,2839,29967,29969,29971,29972,29972,29973,29970,29974,29973,29974,29974,29975,29975,29976,29976,29977,29975,29976,29975,29976,29981,29982,29981,29982,29990,29991,29994,29991,29991,29990]} 1. e4 {[%emt 0:00:05]} c5 {[%emt 0:00:10]} 2. Nf3 {[%emt 0:00:09]} d6 {[%emt 0:00:34]} 3. d4 {[%emt 0:00:10]} cxd4 {[%emt 0:00:05]} 4. Nxd4 {[%emt 0:00:06]} Nf6 {[%emt 0:00:07]} 5. Nc3 {[%emt 0:00:06]} Nc6 {[%emt 0:00:04]} 6. Bg5 {[%emt 0:00:17]} e6 {[%emt 0:00:09]} 7. Qd2 {[%emt 0:00:08]} a6 {[%emt 0:00:10]} 8. O-O-O {[%emt 0:00:24]} Bd7 {[%emt 0:00:05]} 9. f3 {[%emt 0:00:14]} Nxd4 {[%emt 0:00:10]} 10. Qxd4 {[%emt 0:00:09]} Be7 {[%emt 0:00:24]} 11. g4 {[%emt 0:02:13]} h5 {[%emt 0:00:21]} 12. gxh5 {[%emt 0:01:17]} Nxh5 {[%emt 0:00:50]} 13. Bxe7 {[%emt 0:01:33]} Qxe7 {[%emt 0:00:33]} 14. Rg1 {[%emt 0:00:21][%cal Od4b4]} (14. Qxd6 $2 Qxd6 15. Rxd6 Ng3 $19) 14... Bc6 {[%emt 0:15:22]} 15. Qxd6 {[%emt 0:03:47]} Qxd6 {[%emt 0:00:29]} 16. Rxd6 {[%emt 0:00:06]} Ke7 {[%emt 0:00:31]} 17. Rd2 {[%emt 0:00:48]} b5 {[%emt 0:06:06]} (17... Nf4 $11) 18. Rg5 {[%emt 0:05:32]} g6 {[%emt 0:04:08]} 19. Rc5 {[%emt 0:07:48]} Rhc8 $1 {[%emt 0:01:57]} 20. Rg5 {[%emt 0:14:20]} (20. Nd1 $14) 20... b4 {[%emt 0:12:31]} (20... Rh8 $1 $11 {keeps the balance.}) 21. Nd1 $16 {[%emt 0:08:21] White has more active pieces.} Nf4 {[%emt 0:01:03]} 22. Ra5 {[%emt 0:02:11]} Bb5 {[%emt 0:03:30]} 23. Bxb5 $18 {[%emt 0:03:01]} axb5 {[%emt 0:00:01]} 24. Rxb5 {[%emt 0:18:30]} Rxa2 {[%emt 0:00:22][%cal Ra2a1]} 25. Rb7+ $1 {[%emt 0:00:04]} (25. Rxb4 $2 Ra1#) 25... Ke8 {[%emt 0:08:03] [#]} 26. Kb1 {[%emt 0:10:03] Inhibits Ra1+.} (26. Rxb4 $2 Ra1#) (26. Rdd7 $1 $18 {[%cal Rd7e7] Black must now prevent Re7+.} b3 27. c3 (27. Rxf7 $2 Rxc2+ 28. Kb1 Ra1+ 29. Kxa1 Rc1#) (27. Re7+ Kf8 $18)) 26... Rca8 $14 {[%emt 0:01:15][%csl Ga8][%cal Ra2a1]} 27. Rb8+ {[%emt 0:00:06]} Ke7 {[%emt 0:02:01][%csl Ga8][%cal Ra2a1]} 28. Rxa8 {[%emt 0:00:05]} (28. Rxb4 $2 Ra1#) 28... Rxa8 {[%emt 0:00:06][%mdl 4096] Endgame KRN-KRN. White is a pawn up.} 29. Ne3 {[%emt 0:00:40]} Rh8 {[%emt 0:02:18]} 30. Nf1 {[%emt 0:07:11]} (30. Ng4 $14) 30... Rh3 $11 {[%emt 0:03:18]} 31. Ng3 {[%emt 0:00:09]} Nh5 {[%emt 0:01:23]} 32. Rg2 {[%emt 0:08:45]} Nf4 {[%emt 0:00:40]} 33. Rf2 {[%emt 0:00:39]} Kd6 {[%emt 0:01:33]} 34. Ka2 {[%emt 0:00:04]} Kc5 {[%emt 0:02:35]} 35. Kb3 {[%emt 0:00:31]} Kb5 {[%emt 0:05:34]} 36. Rd2 {[%emt 0:03:02]} Nh5 {[%emt 0:03:12]} 37. Rd4 {[%emt 0:03:58]} Nxg3 {[%emt 0:00:59]} (37... Rxh2 $11 38. Rxb4+ Kc6 39. Nxh5 gxh5) 38. Rxb4+ {[%emt 0:00:14] KRN-KR} (38. hxg3 {simplifies} Rxg3 39. Rxb4+ Kc6 40. Rc4+) 38... Kc5 {[%emt 0:11:20] Threatens to win with ...Ne2.} 39. Rc4+ {[%emt 0:00:18]} Kb5 {[%emt 0:00:07]} (39... Kd6 $1 $14 40. hxg3 Rxg3) 40. hxg3 $16 {[%emt 0:00:11]} Rxg3 {[%emt 0:00:05] KR-KR. White is a pawn up.} 41. Rc3 {[%emt 0:30:12]} e5 {[%emt 0:32:18]} (41... g5 $142) 42. Rd3 {[%emt 0:00:17]} f5 {[%emt 0:00:56]} 43. exf5 {[%emt 0:00:13]} gxf5 {[%emt 0:00:16] [#]} 44. Rd5+ $1 {[%emt 0:00:00]} Kc6 {[%emt 0:00:00]} 45. Rxe5 {[%emt 0:00:00]} Rxf3+ {[%emt 0:00:00]} 46. Kc4 {[%emt 0:00:00]} Rf2 {[%emt 0:00:00]} 47. Kd3 {[%emt 0:00:00]} Kd6 {[%emt 0:00:00]} 48. Re8 {[%emt 0:00:00]} Rh2 {[%emt 0:00:00]} (48... f4 $16) 49. b4 $18 {[%emt 0:00:00]} Rh7 {[%emt 0:00:00]} (49... Rh3+ 50. Kc4 Rh2) 50. Rf8 {[%emt 0:00:00]} (50. Rd8+ $18 Ke7 51. Rd5) 50... Rh5 $2 {[%emt 0:00:00][%mdl 8192]} (50... Rh3+ $16 51. Kc4 Rh4+ 52. Kb3 f4) 51. c3 $2 {[%emt 0:00:00]} (51. c4 $18) 51... Ke7 $2 {[%emt 0:00:00]} (51... Rh3+ $16 {was necessary.} 52. Kc4 Rh4+ 53. Kb3 Rf4) 52. Rc8 {[%emt 0:00:00]} Rh6 {[%emt 0:07:16]} 53. Rc7+ {[%emt 0:00:00]} (53. b5 $18 {is more deadly.}) 53... Kd6 $16 {[%emt 0:00:21]} 54. Rf7 {[%emt 0:00:00]} ({White should try} 54. Ra7 $16 {Ra6+ would kill now.} Rh3+ 55. Kc4) 54... Ke6 $2 {[%emt 0:00:12][%mdl 8192]} (54... Rh3+ $14 55. Kc4 Rh4+ 56. Kb5 Ke6) 55. Rf8 $18 {[%emt 0:00:00]} Ke5 {[%emt 0:04:18]} 56. b5 {[%emt 0:00:00][%cal Bb4b5,Bb5b6][%mdl 32]} f4 {[%emt 0:06:05]} 57. Kc4 {[%emt 0:00:00]} Rh7 {[%emt 0:02:12]} 58. b6 {[%emt 0:00:00]} Kd6 {[%emt 0:00:46]} 59. Rxf4 {[%emt 0:00:00]} Kc6 {[%emt 0:00:06]} 60. Rf6+ {[%emt 0:00:00]} Kb7 {[%emt 0:00:05]} 61. Kb4 {[%emt 0:00:00]} Ka6 {[%emt 0:01:14]} 62. c4 {[%emt 0:00:00][%cal Bc3c4,Bc4c5][%mdl 32]} Rh5 {[%emt 0:00:26]} 63. Rd6 {[%emt 0:00:48]} Rg5 {[%emt 0:00:40]} 64. c5 {[%emt 0:03:18]} Rg4+ {[%emt 0:00:13]} 65. Kc3 {[%emt 0:00:05]} Rg7 {[%emt 0:00:51]} 66. Kc4 {[%emt 0:00:34]} Rh7 {[%emt 0:00:14]} 67. Re6 {[%emt 0:00:35]} Rg7 {[%emt 0:00:47]} 68. Kd5 {[%emt 0:00:10]} Kb7 {[%emt 0:00:17]} 69. Kd6 {[%emt 0:00:14]} Rg8 {[%emt 0:00:09]} 70. Re7+ {[%emt 0:00:13]} Kb8 {[%emt 0:00:07]} 71. c6 {[%emt 0:00:36]} Rd8+ {[%emt 0:00:18]} 72. Ke6 {[%emt 0:00:45]} Rh8 {[%emt 0:00:10]} 73. Kd7 {[%emt 0:00:07]} 1-0

[Event "Marienbad Open IM B 2025"]
[Site "Marianske Lazne"]
[Date "2025.01.21"]
[Round "5.11"]
[White "Ochedzan, Filip"]
[Black "Konopka, Michal"]
[Result "0-1"]
[Annotator "TA"]
[ECO "B01"]
[WhiteElo "2138"]
[BlackElo "2321"]
[PlyCount "82"]
[EventDate "2025.01.18"]
[EventType "tourn"]
[EventCountry "CZE"]
[SourceTitle "playchess.com"]
[Source "ChessBase"]
[SourceQuality "1"]
[TimeControl "40/5400+30:1800+30"]

{[%evp 10,82,50,31,39,-7,-14,-10,-7,-5,0,-48,-37,-47,-54,-33,-47,-70,-73,-55,-56,-98,-95,-91,-93,-100,-97,-101,-92,-100,-91,-108,-105,-109,-99,-91,-95,-106,-103,-106,-115,-108,-114,-109,-111,-127,-137,-137,-131,-122,-114,-270,-254,-290,-296,-438,-428,-434,-424,-477,-475,-689,-654,-601,-591,-738,-725,-1229,-1284,-1497,-1382,-1513,-1318,-1044,-849]} 1. e4 {[%emt 0:00:02]} d5 {[%emt 0:06:29]} 2. exd5 {[%emt 0:00:08]} Qxd5 {[%emt 0:00:09]} 3. Nc3 {[%emt 0:00:06]} Qa5 {[%emt 0:00:14]} 4. d4 {[%emt 0:00:14]} Nf6 {[%emt 0:00:06]} 5. Nf3 {[%emt 0:00:06]} Bf5 {[%emt 0:00:22]} 6. Bd2 {[%emt 0:00:29]} e6 {[%emt 0:01:19] [#]} 7. Ne4 {[%emt 0:23:22]} Qb6 $11 {[%emt 0:03:50]} 8. Nxf6+ {[%emt 0:00:12]} gxf6 {[%emt 0:00:03]} 9. Bc3 {[%emt 0:00:30]} Bb4 {[%emt 0:21:51]} 10. Qd2 {[%emt 0:01:14]} (10. Bd3 $11 {feels stronger.} Bxd3 11. Qxd3) 10... Nc6 $15 {[%emt 0:05:22][%cal Bb8c6,Bc6b4,Bb4d3][%mdl 32]} 11. Bd3 {[%emt 0:18:14]} Bg4 $1 {[%emt 0:12:39]} 12. Bxb4 {[%emt 0:14:38]} Nxb4 {[%emt 0:06:26]} 13. Be2 {[%emt 0:01:53]} Bxf3 $1 {[%emt 0:04:50]} 14. Bxf3 {[%emt 0:02:11] [#]} Qxd4 $1 {[%emt 0:02:41]} 15. c3 {[%emt 0:09:40]} (15. O-O-O Qxd2+) 15... Qxd2+ {[%emt 0:09:37]} 16. Kxd2 {[%emt 0:00:07]} O-O-O+ {[%emt 0:00:05]} 17. Ke2 {[%emt 0:00:14]} Nd3 {[%emt 0:00:24]} 18. b3 {[%emt 0:01:13]} f5 {[%emt 0:07:40]} 19. g3 {[%emt 0:02:31]} Ne5 {[%emt 0:01:56] Black is more active.} 20. Bg2 {[%emt 0:00:23]} Rd6 {[%emt 0:00:41]} 21. Rad1 {[%emt 0:00:21]} Rhd8 {[%emt 0:00:15]} 22. Rxd6 {[%emt 0:00:55]} Rxd6 {[%emt 0:00:29]} 23. Rd1 {[%emt 0:03:36]} Rxd1 {[%emt 0:02:38]} 24. Kxd1 $17 {[%emt 0:00:06][%mdl 4096] Endgame KB-KN. Black is a pawn up.} b6 {[%emt 0:01:26]} ({Much worse is} 24... Ng4 $6 25. Ke2 $11) 25. Ke2 {[%emt 0:00:25]} Kd7 {[%emt 0:00:22]} 26. h3 {[%emt 0:02:40]} Kd6 {[%emt 0:00:20]} 27. f4 {[%emt 0:00:41]} Nd7 {[%emt 0:00:11]} 28. Ke3 {[%emt 0:00:18]} Nf6 {[%emt 0:00:17]} 29. Bf3 {[%emt 0:00:40]} e5 {[%emt 0:01:48]} 30. fxe5+ $2 {[%emt 0:05:00]} (30. Bb7 $17 {is a better defense.}) 30... Kxe5 $19 {[%emt 0:00:07]} 31. c4 {[%emt 0:00:22]} Ne4 {[%emt 0:01:46]} 32. g4 {[%emt 0:03:59]} (32. Bh5 $142) 32... f4+ {[%emt 0:00:07]} 33. Ke2 {[%emt 0:00:10]} Nc3+ {[%emt 0:01:19]} 34. Kd3 {[%emt 0:00:08]} Nxa2 {[%emt 0:00:12]} 35. Bb7 {[%emt 0:00:29]} (35. g5 $142) 35... Nc1+ {[%emt 0:01:07]} 36. Kc2 {[%emt 0:00:19]} Ne2 {[%emt 0:00:05]} 37. Kd3 {[%emt 0:00:40]} Nd4 {[%emt 0:00:36]} 38. b4 {[%emt 0:00:08]} a5 {[%emt 0:00:05]} 39. bxa5 {[%emt 0:00:09]} bxa5 {[%emt 0:00:06] ...f3 would now be deadly.} 40. g5 {[%emt 0:00:16]} Ne6 {[%emt 0:00:33] ( -> ...Nc5+)} 41. Bc6 {[%emt 0:30:37]} Nxg5 {[%emt 0:30:37]} 0-1

[Event "Marienbad Open IM B 2025"]
[Site "Marianske Lazne"]
[Date "2025.01.21"]
[Round "5.12"]
[White "Tichy, Stepan"]
[Black "Van der Hagen, Loek"]
[Result "1/2-1/2"]
[Annotator "TA"]
[ECO "A15"]
[WhiteElo "2184"]
[BlackElo "2299"]
[PlyCount "65"]
[EventDate "2025.01.18"]
[EventType "tourn"]
[EventCountry "CZE"]
[SourceTitle "playchess.com"]
[Source "ChessBase"]
[SourceQuality "1"]
[TimeControl "40/5400+30:1800+30"]

{[%evp 14,65,39,14,28,23,27,26,25,16,50,0,0,0,8,5,10,-12,-1,-30,0,-4,0,0,0,0,0,-17,0,-15,-9,-23,-16,-16,-23,-26,-26,-30,-26,-26,-26,-26,-26,-26,-26,-26,-26,-26,-26,-32,0,-26,0,-43]} 1. c4 {[%emt 0:00:02]} Nf6 {[%emt 0:00:19]} 2. g3 {[%emt 0:00:09]} e5 {[%emt 0:00:14]} 3. Bg2 {[%emt 0:00:16]} d5 {[%emt 0:00:07]} 4. cxd5 {[%emt 0:01:37]} Nxd5 {[%emt 0:00:10]} 5. Nc3 {[%emt 0:00:39]} Nxc3 {[%emt 0:01:02]} 6. bxc3 {[%emt 0:00:06]} Bd6 {[%emt 0:00:07]} 7. Nf3 {[%emt 0:03:36]} O-O {[%emt 0:00:12]} 8. O-O {[%emt 0:00:04]} e4 {[%emt 0:00:28]} 9. Nd4 {[%emt 0:00:47]} Re8 {[%emt 0:00:07]} 10. d3 {[%emt 0:06:02]} exd3 {[%emt 0:00:08]} 11. Qxd3 {[%emt 0:03:34]} c6 {[%emt 0:03:46]} 12. Be3 {[%emt 0:03:34]} (12. Rd1 $14) 12... Bf8 $11 {[%emt 0:08:49]} 13. Rfd1 {[%emt 0:05:54]} Qf6 {[%emt 0:04:31]} 14. a4 {[%emt 0:05:22]} a5 {[%emt 0:12:39]} 15. Bf3 {[%emt 0:08:11]} Nd7 {[%emt 0:05:37]} 16. Qf5 {[%emt 0:06:27]} Qe7 {[%emt 0:19:53]} 17. Bf4 {[%emt 0:06:38]} g6 {[%emt 0:07:46]} 18. Qc2 {[%emt 0:04:48]} Bg7 {[%emt 0:00:54]} 19. Rd2 {[%emt 0:02:52]} Ne5 {[%emt 0:03:32]} 20. Bxe5 {[%emt 0:00:17]} Qxe5 {[%emt 0:00:21]} 21. Rad1 {[%emt 0:00:39]} Qc5 {[%emt 0:03:16]} 22. Kg2 {[%emt 0:03:30]} Ra6 {[%emt 0:03:50]} 23. Rb1 {[%emt 0:02:38]} Rb6 {[%emt 0:05:31]} 24. Rxb6 {[%emt 0:00:20]} Qxb6 {[%emt 0:00:05]} 25. Qb2 {[%emt 0:01:57]} Qc5 {[%emt 0:06:03]} 26. e3 {[%emt 0:02:30]} Bf6 {[%emt 0:00:39]} 27. Qb3 {[%emt 0:02:57]} Rd8 {[%emt 0:01:25]} 28. Rb2 {[%emt 0:01:21]} Kg7 {[%emt 0:00:55]} 29. Rb1 {[%emt 0:00:36]} h5 {[%emt 0:00:58]} 30. h4 {[%emt 0:00:29]} Rd6 {[%emt 0:01:55]} 31. Rb2 {[%emt 0:03:12]} Rd8 {[%emt 0:00:13]} 32. Rb1 {[%emt 0:00:17]} Rd6 {[%emt 0:02:31]} 33. Rb2 {[%emt 0:00:05]} 1/2-1/2

[Event "Marienbad Open IM B 2025"]
[Site "Marianske Lazne"]
[Date "2025.01.21"]
[Round "5.13"]
[White "Pisk, Petr"]
[Black "Senthil Maran K"]
[Result "1/2-1/2"]
[Annotator "TA"]
[ECO "B31"]
[WhiteElo "2302"]
[BlackElo "2398"]
[PlyCount "36"]
[EventDate "2025.01.18"]
[EventType "tourn"]
[EventCountry "CZE"]
[SourceTitle "playchess.com"]
[Source "ChessBase"]
[SourceQuality "1"]
[TimeControl "40/5400+30:1800+30"]

{[%evp 11,36,14,23,33,23,21,22,25,38,16,28,16,22,23,23,15,20,27,20,18,35,20,33,25,35,0,14]} 1. e4 {[%emt 0:00:03]} c5 {[%emt 0:06:09]} 2. Nf3 {[%emt 0:01:14]} Nc6 {[%emt 0:00:15]} 3. Bb5 {[%emt 0:01:28]} g6 {[%emt 0:00:13]} 4. Bxc6 {[%emt 0:01:11]} bxc6 {[%emt 0:00:18]} 5. O-O {[%emt 0:01:03]} Bg7 {[%emt 0:00:26]} 6. c3 {[%emt 0:00:38][%cal Bc2c3,Bc3d4][%mdl 32]} Nh6 {[%emt 0:11:48]} 7. d4 {[%emt 0:01:01]} cxd4 {[%emt 0:00:15]} 8. cxd4 {[%emt 0:00:41]} O-O {[%emt 0:01:33]} 9. Nc3 {[%emt 0:00:53]} f6 {[%emt 0:01:03]} 10. b3 {[%emt 0:02:11]} Nf7 {[%emt 0:00:20]} 11. Bb2 {[%emt 0:01:24]} Ba6 {[%emt 0:04:57]} 12. Re1 {[%emt 0:01:03]} d6 {[%emt 0:00:08]} 13. Rc1 {[%emt 0:04:37]} e5 {[%emt 0:02:42]} 14. Na4 {[%emt 0:06:12]} Rc8 {[%emt 0:04:24]} 15. h3 {[%emt 0:02:01]} Qe7 {[%emt 0:03:01]} 16. Rc2 {[%emt 0:07:32]} Bb5 {[%emt 0:03:51]} 17. Nc3 {[%emt 0:00:45]} Ba6 {[%emt 0:00:01]} 18. Na4 {[%emt 0:00:37]} Bb5 {[%emt 0:00:06] Weighted Error Value: White=0.09 (flawless) /Black=0.06 (flawless) .  OK:         	White=3     	Black=4} 1/2-1/2